Workbook

Sheet Hoja1

Sheet hoja de captura
C7: 1 | J7: =C7+25 -> 26 | Q7: =J7+25 -> 51 | X7: =Q7+25 -> 76 | AD7: =X7+25 -> 101 | AJ7: =AD7+25 -> 126 | AP7: =AJ7+25 -> 151 | AV7: =AP7+25 -> 176
C8: 2 | J8: =C8+25 -> 27 | Q8: =J8+25 -> 52 | X8: =Q8+25 -> 77 | AD8: =X8+25 -> 102 | AJ8: =AD8+25 -> 127 | AP8: =AJ8+25 -> 152 | AV8: =AP8+25 -> 177
C9: 3 | J9: 28 | Q9: 53 | X9: 78 | AD9: 103 | AJ9: 128 | AP9: 153 | AV9: =AP9+25 -> 178
C10: 4 | J10: 29 | Q10: 54 | X10: 79 | AD10: 104 | AJ10: 129 | AP10: 154 | AV10: =AP10+25 -> 179
C11: 5 | J11: 30 | Q11: 55 | X11: 80 | AD11: 105 | AJ11: 130 | AP11: 155 | AV11: =AP11+25 -> 180
C14: 6 | J14: 31 | Q14: 56 | X14: 81 | AD14: 106 | AJ14: 131 | AP14: 156 | AV14: =AP14+25 -> 181
C15: 7 | J15: 32 | Q15: 57 | X15: 82 | AD15: 107 | AJ15: 132 | AP15: 157 | AV15: =AP15+25 -> 182
C16: 8 | J16: 33 | Q16: 58 | X16: 83 | AD16: 108 | AJ16: 133 | AP16: 158 | AV16: 183
C17: 9 | J17: 34 | Q17: 59 | X17: 84 | AD17: 109 | AJ17: 134 | AP17: 159 | AV17: 184
C18: 10 | J18: 35 | Q18: 60 | X18: 85 | AD18: 110 | AJ18: 135 | AP18: 160 | AV18: 185
C21: 11 | J21: 36 | Q21: 61 | X21: 86 | AD21: 111 | AJ21: 136 | AP21: 161 | AV21: 186
C22: 12 | J22: 37 | Q22: 62 | X22: 87 | AD22: 112 | AJ22: 137 | AP22: 162 | AV22: 187
C23: 13 | J23: 38 | Q23: 63 | X23: 88 | AD23: 113 | AJ23: 138 | AP23: 163
C24: 14 | J24: 39 | Q24: 64 | X24: 89 | AD24: 114 | AJ24: 139 | AP24: 164
C25: 15 | J25: 40 | Q25: 65 | X25: 90 | AD25: 115 | AJ25: 140 | AP25: 165
C28: 16 | J28: 41 | Q28: 66 | X28: 91 | AD28: 116 | AJ28: 141 | AP28: 166
C29: 17 | J29: 42 | Q29: 67 | X29: 92 | AD29: 117 | AJ29: 142 | AP29: 167
C30: 18 | J30: 43 | Q30: 68 | X30: 93 | AD30: 118 | AJ30: 143 | AP30: 168
C31: 19 | J31: 44 | Q31: 69 | X31: 94 | AD31: 119 | AJ31: 144 | AP31: 169
C32: 20 | J32: 45 | Q32: 70 | X32: 95 | AD32: 120 | AJ32: 145 | AP32: 170
C35: 21 | J35: 46 | Q35: 71 | X35: 96 | AD35: 121 | AJ35: 146 | AP35: 171
C36: 22 | J36: 47 | Q36: 72 | X36: 97 | AD36: 122 | AJ36: 147 | AP36: 172
C37: 23 | J37: 48 | Q37: 73 | X37: 98 | AD37: 123 | AJ37: 148 | AP37: 173
C38: 24 | J38: 49 | Q38: 74 | X38: 99 | AD38: 124 | AJ38: 149 | AP38: 174
C39: 25 | J39: 50 | Q39: 75 | X39: 100 | AD39: 125 | AJ39: 150 | AP39: 175
BA40: 1
P43: 1

Sheet matriz
E3: FALSE
B5: A | C5: B | D5: C | G5: A | H5: B | I5: C | L5: A | M5: B | N5: C | Q5: A | R5: B | S5: C | V5: A | W5: B | X5: C | AA5: A | AB5: B | AC5: C | AF5: A | AG5: B | AH5: C | AK5: A | AL5: B | AM5: C
A6: 1 | B6: FALSE | C6: FALSE | D6: FALSE | F6: =A6+25 -> 26 | G6: FALSE | H6: FALSE | I6: FALSE | K6: =F6+25 -> 51 | L6: FALSE | M6: FALSE | N6: FALSE | P6: =K6+25 -> 76 | Q6: FALSE | R6: FALSE | S6: FALSE | U6: =P6+25 -> 101 | V6: FALSE | W6: FALSE | X6: FALSE | Z6: =U6+25 -> 126 | AA6: FALSE | AB6: FALSE | AC6: FALSE | AE6: =Z6+25 -> 151 | AF6: FALSE | AG6: FALSE | AH6: FALSE | AJ6: =AE6+25 -> 176 | AK6: FALSE | AL6: FALSE | AM6: FALSE
A7: 0 | B7: FALSE | C7: FALSE | D7: FALSE | F7: =A7+25 -> 25 | G7: FALSE | H7: FALSE | I7: FALSE | K7: =F7+25 -> 50 | L7: FALSE | M7: FALSE | N7: FALSE | P7: 77 | Q7: FALSE | R7: FALSE | S7: FALSE | U7: =P7+25 -> 102 | V7: FALSE | W7: FALSE | X7: FALSE | Z7: =U7+25 -> 127 | AA7: FALSE | AB7: FALSE | AC7: FALSE | AE7: =Z7+25 -> 152 | AF7: FALSE | AG7: FALSE | AH7: FALSE | AJ7: 177 | AK7: FALSE | AL7: FALSE | AM7: FALSE
A8: 3 | B8: FALSE | C8: FALSE | D8: FALSE | F8: 28 | G8: FALSE | H8: FALSE | I8: FALSE | K8: 53 | L8: FALSE | M8: FALSE | N8: FALSE | P8: =K8+25 -> 78 | Q8: FALSE | R8: FALSE | S8: FALSE | U8: 103 | V8: FALSE | W8: FALSE | X8: FALSE | Z8: 128 | AA8: FALSE | AB8: FALSE | AC8: FALSE | AE8: 153 | AF8: FALSE | AG8: FALSE | AH8: FALSE | AJ8: 178 | AK8: FALSE | AL8: FALSE | AM8: FALSE
A9: 4 | B9: FALSE | C9: FALSE | D9: FALSE | F9: 29 | G9: FALSE | H9: FALSE | I9: FALSE | K9: 54 | L9: FALSE | M9: FALSE | N9: FALSE | P9: 79 | Q9: FALSE | R9: FALSE | S9: FALSE | U9: 104 | V9: FALSE | W9: FALSE | X9: FALSE | Z9: 129 | AA9: FALSE | AB9: FALSE | AC9: FALSE | AE9: 154 | AF9: FALSE | AG9: FALSE | AH9: FALSE | AJ9: 179 | AK9: FALSE | AL9: FALSE | AM9: FALSE
A10: 5 | B10: FALSE | C10: FALSE | D10: FALSE | F10: 30 | G10: FALSE | H10: FALSE | I10: FALSE | K10: 55 | L10: FALSE | M10: FALSE | N10: FALSE | P10: 80 | Q10: FALSE | R10: FALSE | S10: FALSE | U10: 105 | V10: FALSE | W10: FALSE | X10: FALSE | Z10: 130 | AA10: FALSE | AB10: FALSE | AC10: FALSE | AE10: 155 | AF10: FALSE | AG10: FALSE | AH10: FALSE | AJ10: 180 | AK10: FALSE | AL10: FALSE | AM10: FALSE
A12: 6 | B12: FALSE | C12: FALSE | D12: FALSE | F12: 31 | G12: FALSE | H12: FALSE | I12: FALSE | K12: 56 | L12: FALSE | M12: FALSE | N12: FALSE | P12: 81 | Q12: FALSE | R12: FALSE | S12: FALSE | U12: 106 | V12: FALSE | W12: FALSE | X12: FALSE | Z12: 131 | AA12: FALSE | AB12: FALSE | AC12: FALSE | AE12: 156 | AF12: FALSE | AG12: FALSE | AH12: FALSE | AJ12: 181 | AK12: FALSE | AL12: FALSE | AM12: FALSE
A13: 7 | B13: FALSE | C13: FALSE | D13: FALSE | F13: 32 | G13: FALSE | H13: FALSE | I13: FALSE | K13: 57 | L13: FALSE | M13: FALSE | N13: FALSE | P13: 82 | Q13: FALSE | R13: FALSE | S13: FALSE | U13: 107 | V13: FALSE | W13: FALSE | X13: FALSE | Z13: 132 | AA13: FALSE | AB13: FALSE | AC13: FALSE | AE13: 157 | AF13: FALSE | AG13: FALSE | AH13: FALSE | AJ13: 182 | AK13: FALSE | AL13: FALSE | AM13: FALSE
A14: 8 | B14: FALSE | C14: FALSE | D14: FALSE | F14: 33 | G14: FALSE | H14: FALSE | I14: FALSE | K14: 58 | L14: FALSE | M14: FALSE | N14: FALSE | P14: 83 | Q14: FALSE | R14: FALSE | S14: FALSE | U14: 108 | V14: FALSE | W14: FALSE | X14: FALSE | Z14: 133 | AA14: FALSE | AB14: FALSE | AC14: FALSE | AE14: 158 | AF14: FALSE | AG14: FALSE | AH14: FALSE | AJ14: 183 | AK14: FALSE | AL14: FALSE | AM14: FALSE
A15: 9 | B15: FALSE | C15: FALSE | D15: FALSE | F15: 34 | G15: FALSE | H15: FALSE | I15: FALSE | K15: 59 | L15: FALSE | M15: FALSE | N15: FALSE | P15: 84 | Q15: FALSE | R15: FALSE | S15: FALSE | U15: 109 | V15: FALSE | W15: FALSE | X15: FALSE | Z15: 134 | AA15: FALSE | AB15: FALSE | AC15: FALSE | AE15: 159 | AF15: FALSE | AG15: FALSE | AH15: FALSE | AJ15: 184 | AK15: FALSE | AL15: FALSE | AM15: FALSE
A16: 10 | B16: FALSE | C16: FALSE | D16: FALSE | F16: 35 | G16: FALSE | H16: FALSE | I16: FALSE | K16: 60 | L16: FALSE | M16: FALSE | N16: FALSE | P16: 85 | Q16: FALSE | R16: FALSE | S16: FALSE | U16: 110 | V16: FALSE | W16: FALSE | X16: FALSE | Z16: 135 | AA16: FALSE | AB16: FALSE | AC16: FALSE | AE16: 160 | AF16: FALSE | AG16: FALSE | AH16: FALSE | AJ16: 185 | AK16: FALSE | AL16: FALSE | AM16: FALSE
A18: 11 | B18: FALSE | C18: FALSE | D18: FALSE | F18: 36 | G18: FALSE | H18: FALSE | I18: FALSE | K18: 61 | L18: FALSE | M18: FALSE | N18: FALSE | P18: 86 | Q18: FALSE | R18: FALSE | S18: FALSE | U18: 111 | V18: FALSE | W18: FALSE | X18: FALSE | Z18: 136 | AA18: FALSE | AB18: FALSE | AC18: FALSE | AE18: 161 | AF18: FALSE | AG18: FALSE | AH18: FALSE | AJ18: 186 | AK18: FALSE | AL18: FALSE | AM18: FALSE
A19: 12 | B19: FALSE | C19: FALSE | D19: FALSE | F19: 37 | G19: FALSE | H19: FALSE | I19: FALSE | K19: 62 | L19: FALSE | M19: FALSE | N19: FALSE | P19: 87 | Q19: FALSE | R19: FALSE | S19: FALSE | U19: 112 | V19: FALSE | W19: FALSE | X19: FALSE | Z19: 137 | AA19: FALSE | AB19: FALSE | AC19: FALSE | AE19: 162 | AF19: FALSE | AG19: FALSE | AH19: FALSE | AJ19: 187 | AK19: FALSE | AL19: FALSE | AM19: FALSE
A20: 13 | B20: FALSE | C20: FALSE | D20: FALSE | F20: 38 | G20: FALSE | H20: FALSE | I20: FALSE | K20: 63 | L20: FALSE | M20: FALSE | N20: FALSE | P20: 88 | Q20: FALSE | R20: FALSE | S20: FALSE | U20: 113 | V20: FALSE | W20: FALSE | X20: FALSE | Z20: 138 | AA20: FALSE | AB20: FALSE | AC20: FALSE | AE20: 163 | AF20: FALSE | AG20: FALSE | AH20: FALSE
A21: 14 | B21: FALSE | C21: FALSE | D21: FALSE | F21: 39 | G21: FALSE | H21: FALSE | I21: FALSE | K21: 64 | L21: FALSE | M21: FALSE | N21: FALSE | P21: 89 | Q21: FALSE | R21: FALSE | S21: FALSE | U21: 114 | V21: FALSE | W21: FALSE | X21: FALSE | Z21: 139 | AA21: FALSE | AB21: FALSE | AC21: FALSE | AE21: 164 | AF21: FALSE | AG21: FALSE | AH21: FALSE
A22: 15 | B22: FALSE | C22: FALSE | D22: FALSE | F22: 40 | G22: FALSE | H22: FALSE | I22: FALSE | K22: 65 | L22: FALSE | M22: FALSE | N22: FALSE | P22: 90 | Q22: FALSE | R22: FALSE | S22: FALSE | U22: 115 | V22: FALSE | W22: FALSE | X22: FALSE | Z22: 140 | AA22: FALSE | AB22: FALSE | AC22: FALSE | AE22: 165 | AF22: FALSE | AG22: FALSE | AH22: FALSE
A24: 16 | B24: FALSE | C24: FALSE | D24: FALSE | F24: 41 | G24: FALSE | H24: FALSE | I24: FALSE | K24: 66 | L24: FALSE | M24: FALSE | N24: FALSE | P24: 91 | Q24: FALSE | R24: FALSE | S24: FALSE | U24: 116 | V24: FALSE | W24: FALSE | X24: FALSE | Z24: 141 | AA24: FALSE | AB24: FALSE | AC24: FALSE | AE24: 166 | AF24: FALSE | AG24: FALSE | AH24: FALSE
A25: 17 | B25: FALSE | C25: FALSE | D25: FALSE | F25: 42 | G25: FALSE | H25: FALSE | I25: FALSE | K25: 67 | L25: FALSE | M25: FALSE | N25: FALSE | P25: 92 | Q25: FALSE | R25: FALSE | S25: FALSE | U25: 117 | V25: FALSE | W25: FALSE | X25: FALSE | Z25: 142 | AA25: FALSE | AB25: FALSE | AC25: FALSE | AE25: 167 | AF25: FALSE | AG25: FALSE | AH25: FALSE
A26: 18 | B26: FALSE | C26: FALSE | D26: FALSE | F26: 43 | G26: FALSE | H26: FALSE | I26: FALSE | K26: 68 | L26: FALSE | M26: FALSE | N26: FALSE | P26: 93 | Q26: FALSE | R26: FALSE | S26: FALSE | U26: 118 | V26: FALSE | W26: FALSE | X26: FALSE | Z26: 143 | AA26: FALSE | AB26: FALSE | AC26: FALSE | AE26: 168 | AF26: FALSE | AG26: FALSE | AH26: FALSE
A27: 19 | B27: FALSE | C27: FALSE | D27: FALSE | F27: 44 | G27: FALSE | H27: FALSE | I27: FALSE | K27: 69 | L27: FALSE | M27: FALSE | N27: FALSE | P27: 94 | Q27: FALSE | R27: FALSE | S27: FALSE | U27: 119 | V27: FALSE | W27: FALSE | X27: FALSE | Z27: 144 | AA27: FALSE | AB27: FALSE | AC27: FALSE | AE27: 169 | AF27: FALSE | AG27: FALSE | AH27: FALSE
A28: 20 | B28: FALSE | C28: FALSE | D28: FALSE | F28: 45 | G28: FALSE | H28: FALSE | I28: FALSE | K28: 70 | L28: FALSE | M28: FALSE | N28: FALSE | P28: 95 | Q28: FALSE | R28: FALSE | S28: FALSE | U28: 120 | V28: FALSE | W28: FALSE | X28: FALSE | Z28: 145 | AA28: FALSE | AB28: FALSE | AC28: FALSE | AE28: 170 | AF28: FALSE | AG28: FALSE | AH28: FALSE
A30: 21 | B30: FALSE | C30: FALSE | D30: FALSE | F30: 46 | G30: FALSE | H30: FALSE | I30: FALSE | K30: 71 | L30: FALSE | M30: FALSE | N30: FALSE | P30: 96 | Q30: FALSE | R30: FALSE | S30: FALSE | U30: 121 | V30: FALSE | W30: FALSE | X30: FALSE | Z30: 146 | AA30: FALSE | AB30: FALSE | AC30: FALSE | AE30: 171 | AF30: FALSE | AG30: FALSE | AH30: FALSE
A31: 22 | B31: FALSE | C31: FALSE | D31: FALSE | F31: 47 | G31: FALSE | H31: FALSE | I31: FALSE | K31: 72 | L31: FALSE | M31: FALSE | N31: FALSE | P31: 97 | Q31: FALSE | R31: FALSE | S31: FALSE | U31: 122 | V31: FALSE | W31: FALSE | X31: FALSE | Z31: 147 | AA31: FALSE | AB31: FALSE | AC31: FALSE | AE31: 172 | AF31: FALSE | AG31: FALSE | AH31: FALSE
A32: 23 | B32: FALSE | C32: FALSE | D32: FALSE | F32: 48 | G32: FALSE | H32: FALSE | I32: FALSE | K32: 73 | L32: FALSE | M32: FALSE | N32: FALSE | P32: 98 | Q32: FALSE | R32: FALSE | S32: FALSE | U32: 123 | V32: FALSE | W32: FALSE | X32: FALSE | Z32: 148 | AA32: FALSE | AB32: FALSE | AC32: FALSE | AE32: 173 | AF32: FALSE | AG32: FALSE | AH32: FALSE
A33: 24 | B33: FALSE | C33: FALSE | D33: FALSE | F33: 49 | G33: FALSE | H33: FALSE | I33: FALSE | K33: 74 | L33: FALSE | M33: FALSE | N33: FALSE | P33: 99 | Q33: FALSE | R33: FALSE | S33: FALSE | U33: 124 | V33: FALSE | W33: FALSE | X33: FALSE | Z33: 149 | AA33: FALSE | AB33: FALSE | AC33: FALSE | AE33: 174 | AF33: FALSE | AG33: FALSE | AH33: FALSE
A34: 25 | B34: FALSE | C34: FALSE | D34: FALSE | F34: 50 | G34: FALSE | H34: FALSE | I34: FALSE | K34: 75 | L34: FALSE | M34: FALSE | N34: FALSE | P34: 100 | Q34: FALSE | R34: FALSE | S34: FALSE | U34: 125 | V34: FALSE | W34: FALSE | X34: FALSE | Z34: 150 | AA34: FALSE | AB34: FALSE | AC34: FALSE | AE34: 175 | AF34: FALSE | AG34: FALSE | AH34: FALSE
B37: FACTOR A | F37: Factor C | I37: Factor F | M37: Factor H | Q37: Factor L | U37: Factor Q1 | Y37: Factor Q3 | AC37: Factor B | AG37: Factor E | AK37: Factor G | AO37: Factor I | AS37: Factor M | AW37: Factor O | BA37: Factor Q2 | BE37: Factor Q4 | BI37: Factor N
A38: PU | B38: #PR | C38: VAL | D38: VALCOMP | E38: PU | F38: #PR | G38: VAL | H38: VALCOMP | I38: PU | J38: #PR | K38: VAL | L38: VALCOMP | M38: PU | N38: #PR | O38: VAL | P38: VALCOMP | Q38: PU | R38: #PR | T38: VALCOMP | U38: PU | V38: #PR | W38: VAL | X38: VALCOMP | Y38: PU | Z38: #PR | AA38: VAL | AB38: VALCOMP | AC38: PU | AD38: #PR | AE38: VAL | AF38: VALCOMP | AG38: PU | AH38: #PR | AI38: VAL | AJ38: VALCOMP | AK38: PU | AL38: #PR | AM38: VAL | AN38: VALCOMP | AO38: PU | AP38: #PR | AQ38: VAL | AR38: VALCOMP | AS38: PU | AT38: #PR | AU38: VAL | AV38: VALCOMP | AW38: PU | AX38: #PR | AY38: VAL | AZ38: VALCOMP | BA38: PU | BB38: #PR | BC38: VAL | BD38: VALCOMP | BE38: PU | BF38: #PR | BG38: VAL | BH38: VALCOMP | BI38: PU | BJ38: #PR | BK38: VAL | BL38: VALCOMP
A39: 2 | B39: 3a | C39: =IF(B8=D39,2,0) -> 0 | D39: TRUE | E39: 2 | F39: 4a | G39: =IF(B9=H39,2,0) -> 0 | H39: TRUE | I39: 1 | J39: 8b | K39: =IF(C14=L39,1,0) -> 0 | L39: TRUE | M39: 2 | N39: 10a | O39: =IF(B16=P39,2,0) -> 0 | P39: TRUE | Q39: 1 | R39: 13b | S39: =IF(C20=T39,1,0) -> 0 | T39: TRUE | U39: 2 | V39: 20a | W39: =IF(B28=X39,2,0) -> 0 | X39: TRUE | Y39: 1 | Z39: 23b | AA39: =IF(C32=AB39,1,0) -> 0 | AB39: TRUE | AC39: 1 | AD39: 28b | AE39: =IF(H8=AF39,1,0) -> 0 | AF39: TRUE | AG39: 1 | AH39: 6b | AI39: =IF(C12=AJ39,1,0) -> 0 | AJ39: TRUE | AK39: 1 | AL39: 9b | AM39: =IF(C15=AN39,1,0) -> 0 | AN39: TRUE | AO39: 1 | AP39: 11b | AQ39: =IF(C18=AR39,1,0) -> 0 | AR39: TRUE | AS39: 1 | AT39: 14b | AU39: =IF(C21=AV39,1,0) -> 0 | AV39: TRUE | AW39: 2 | AX39: 18a | AY39: =IF(B26=AZ39,2,0) -> 0 | AZ39: TRUE | BA39: 1 | BB39: 22b | BC39: =IF(C31=BD39,1,0) -> 0 | BD39: TRUE | BE39: 1 | BF39: 25b | BG39: =IF(C34=BH39,1,0) -> 0 | BH39: TRUE | BI39: 1 | BJ39: 16b | BK39: =IF(C24=BL39,1,0) -> 0 | BL39: TRUE
A40: 1 | B40: 3b | C40: =IF(C8=D40,1,0) -> 0 | D40: TRUE | E40: 1 | F40: 4b | G40: =IF(C90=H40,1,0) -> 0 | H40: TRUE | I40: 2 | J40: 8c | K40: =IF(D14=L40,2,0) -> 0 | L40: TRUE | M40: 1 | N40: 10b | O40: =IF(C16=P40,1,0) -> 0 | P40: TRUE | Q40: 2 | R40: 13c | S40: =IF(D20=T40,2,0) -> 0 | T40: TRUE | U40: 1 | V40: 20b | W40: =IF(C30=X40,1,0) -> 0 | X40: TRUE | Y40: 2 | Z40: 23c | AA40: =IF(D32=AB40,2,0) -> 0 | AB40: TRUE | AC40: 1 | AD40: 53b | AE40: =IF(M8=AF40,1,0) -> 0 | AF40: TRUE | AG40: 2 | AH40: 6c | AI40: =IF(D12=AJ40,2,0) -> 0 | AJ40: TRUE | AK40: 2 | AL40: 9c | AM40: =IF(D15=AN40,2,0) -> 0 | AN40: TRUE | AO40: 2 | AP40: 11c | AQ40: =IF(D18=AR40,2,0) -> 0 | AR40: TRUE | AS40: 2 | AT40: 14c | AU40: =IF(D21=AV40,2,0) -> 0 | AV40: TRUE | AW40: 1 | AX40: 18b | AY40: =IF(C26=AZ40,1,0) -> 0 | AZ40: TRUE | BA40: 2 | BB40: 22c | BC40: =IF(D31=BD40,2,0) -> 0 | BD40: TRUE | BE40: 2 | BF40: 25c | BG40: =IF(D34=BH40,2,0) -> 0 | BH40: TRUE | BI40: 2 | BJ40: 16c | BK40: =IF(D24=BL40,2,0) -> 0 | BL40: TRUE
A41: 1 | B41: 26b | C41: =IF(H6=D41,1,0) -> 0 | D41: TRUE | E41: 1 | F41: 5b | G41: =IF(C10=H41,1,0) -> 0 | H41: TRUE | I41: 2 | J41: 33a | K41: =IF(G14=L41,2,0) -> 0 | L41: TRUE | M41: 1 | N41: 35b | O41: =IF(H16=P41,1,0) -> 0 | P41: TRUE | Q41: 2 | R41: 38A | S41: =IF(G20=T41,2,0) -> 0 | T41: TRUE | U41: 1 | V41: 21b | W41: =IF(C30=X41,1,0) -> 0 | X41: TRUE | Y41: 1 | Z41: 24b | AA41: =IF(C33=AB41,1,0) -> 0 | AB41: TRUE | AC41: 1 | AD41: 54b | AE41: =IF(M9=AF41,1,0) -> 0 | AF41: TRUE | AG41: 2 | AH41: 7a | AI41: =IF(B13=AJ41,2,0) -> 0 | AJ41: TRUE | AK41: 1 | AL41: 34b | AM41: =IF(H15=AN41,1,0) -> 0 | AN41: TRUE | AO41: 2 | AP41: 12a | AQ41: =IF(B19=AR41,2,0) -> 0 | AR41: TRUE | AS41: 1 | AT41: 15b | AU41: =IF(C22=AV41,1,0) -> 0 | AV41: TRUE | AW41: 1 | AX41: 19b | AY41: =IF(C27=AZ41,1,0) -> 0 | AZ41: TRUE | BA41: 2 | BB41: 47a | BC41: =IF(G31=BD41,2,0) -> 0 | BD41: TRUE | BE41: 2 | BF41: 49a | BG41: =IF(G33=BH41,2,0) -> 0 | BH41: TRUE | BI41: 2 | BJ41: 17a | BK41: =IF(B25=BL41,2,0) -> 0 | BL41: TRUE
A42: 2 | B42: 26c | C42: =IF(I6=D42,2,0) -> 0 | D42: TRUE | E42: 2 | F42: 5c | G42: =IF(D10=H42,2,0) -> 0 | H42: TRUE | I42: 1 | J42: 33b | K42: =IF(H14=L42,1,0) -> 0 | L42: TRUE | M42: 2 | N42: 35c | O42: =IF(I16=P42,2,0) -> 0 | P42: TRUE | Q42: 1 | R42: 38B | S42: =IF(H20=T42,1,0) -> 0 | T42: TRUE | U42: 2 | V42: 21c | W42: =IF(D30=X42,2,0) -> 0 | X42: TRUE | Y42: 2 | Z42: 24c | AA42: =IF(D33=AB42,2,0) -> 0 | AB42: TRUE | AC42: 1 | AD42: 77c | AE42: =IF(S7=AF42,1,0) -> 0 | AF42: TRUE | AG42: 1 | AH42: 7b | AI42: =IF(C13=AJ42,1,0) -> 0 | AJ42: TRUE | AK42: 2 | AL42: 34c | AM42: =IF(I15=AN42,2,0) -> 0 | AN42: TRUE | AO42: 1 | AP42: 12b | AQ42: =IF(C19=AR42,1,0) -> 0 | AR42: TRUE | AS42: 2 | AT42: 15c | AU42: =IF(D22=AV42,2,0) -> 0 | AV42: TRUE | AW42: 2 | AX42: 19c | AY42: =IF(D26=AZ42,2,0) -> 0 | AZ42: TRUE | BA42: 1 | BB42: 47b | BC42: =IF(H31=BD42,1,0) -> 0 | BD42: TRUE | BE42: 1 | BF42: 49b | BG42: =IF(H33=BH42,1,0) -> 0 | BH42: TRUE | BI42: 1 | BJ42: 17b | BK42: =IF(C25=BL42,1,0) -> 0 | BL42: TRUE
A43: 1 | B43: 27b | C43: =IF(H7=D43,1,0) -> 0 | D43: TRUE | E43: 1 | F43: 29b | G43: =IF(H9=H43,1,0) -> 0 | H43: TRUE | I43: 1 | J43: 58a | K43: =IF(L14=L43,1,0) -> 0 | L43: TRUE | M43: 2 | N43: 36a | O43: =IF(G18=P43,2,0) -> 0 | P43: TRUE | Q43: 1 | R43: 63b | S43: =IF(M20=T43,1,0) -> 0 | T43: TRUE | U43: 1 | V43: 45b | W43: =IF(H28=X43,1,0) -> 0 | X43: TRUE | Y43: 2 | Z43: 48a | AA43: =IF(G32=AB43,2,0) -> 0 | AB43: TRUE | AC43: 1 | AD43: 78b | AE43: =IF(R8=AF43,1,0) -> 0 | AF43: TRUE | AG43: 1 | AH43: 31b | AI43: =IF(H12=AJ43,2,0) -> 0 | AJ43: TRUE | AK43: 1 | AL43: 59b | AM43: =IF(M15=AN43,1,0) -> 0 | AN43: TRUE | AO43: 2 | AP43: 37a | AQ43: =IF(G19=AR43,2,0) -> 0 | AR43: TRUE | AS43: 2 | AT43: 39a | AU43: =IF(G21=AV43,2,0) -> 0 | AV43: TRUE | AW43: 2 | AX43: 43a | AY43: =IF(G26=AZ43,2,0) -> 0 | AZ43: TRUE | BA43: 2 | BB43: 71a | BC43: =IF(L30=BD43,2,0) -> 0 | BD43: TRUE | BE43: 2 | BF43: 50a | BG43: =IF(G34=BH43,2,0) -> 0 | BH43: TRUE | BI43: 1 | BJ43: 41b | BK43: =IF(H24=BL43,1,0) -> 0 | BL43: TRUE
A44: 2 | B44: 27c | C44: =IF(I7=D44,2,0) -> 0 | D44: TRUE | E44: 2 | F44: 29c | G44: =IF(I9=H44,2,0) -> 0 | H44: TRUE | I44: 2 | J44: 58b | K44: =IF(M14=L44,2,0) -> 0 | L44: TRUE | M44: 1 | N44: 36b | O44: =IF(H18=P44,1,0) -> 0 | P44: TRUE | Q44: 2 | R44: 63c | S44: =IF(M20=T44,2,0) -> 0 | T44: TRUE | U44: 2 | V44: 45c | W44: =IF(I28=X44,2,0) -> 0 | X44: TRUE | Y44: 1 | Z44: 48b | AA44: =IF(H32=AB44,1,0) -> 0 | AB44: TRUE | AC44: 1 | AD44: 102b | AE44: =IF(W7=AF44,1,0) -> 0 | AF44: TRUE | AG44: 2 | AH44: 31c | AI44: =IF(I12=AJ44,2,0) -> 0 | AJ44: TRUE | AK44: 2 | AL44: 59c | AM44: =IF(N15=AN44,2,0) -> 0 | AN44: TRUE | AO44: 1 | AP44: 37b | AQ44: =IF(H19=AR44,1,0) -> 0 | AR44: TRUE | AS44: 1 | AT44: 39b | AU44: =IF(H21=AV44,1,0) -> 0 | AV44: TRUE | AW44: 1 | AX44: 43b | AY44: =IF(H26=AZ44,1,0) -> 0 | AZ44: TRUE | BA44: 1 | BB44: 71b | BC44: =IF(M30=BD44,1,0) -> 0 | BD44: TRUE | BE44: 1 | BF44: 50b | BG44: =IF(H34=BH44,1,0) -> 0 | BH44: TRUE | BI44: 2 | BJ44: 41c | BK44: =IF(I24=BL44,2,0) -> 0 | BL44: TRUE
A45: 1 | B45: 51b | C45: =IF(M6=D45,1,0) -> 0 | D45: TRUE | E45: 2 | F45: 30a | G45: =IF(G10=H45,2,0) -> 0 | H45: TRUE | I45: 1 | J45: 82b | K45: =IF(R13=L45,1,0) -> 0 | L45: TRUE | M45: 1 | N45: 60B | O45: =IF(M16=P45,1,0) -> 0 | P45: TRUE | Q45: 1 | R45: 64b | S45: =IF(M21=T45,1,0) -> 0 | T45: TRUE | U45: 2 | V45: 46a | W45: =IF(G30=X45,2,0) -> 0 | X45: TRUE | Y45: 2 | Z45: 73a | AA45: =IF(L32=AB45,2,0) -> 0 | AB45: TRUE | AC45: 1 | AD45: 103b | AE45: =IF(W8=AF45,1,0) -> 0 | AF45: TRUE | AG45: 1 | AH45: 32b | AI45: =IF(H13=AJ45,1,0) -> 0 | AJ45: TRUE | AK45: 1 | AL45: 84b | AM45: =IF(R15=AN45,1,0) -> 0 | AN45: TRUE | AO45: 1 | AP45: 62b | AQ45: =IF(M19=AR45,1,0) -> 0 | AR45: TRUE | AS45: 2 | AT45: 40a | AU45: =IF(G22=AV45,2,0) -> 0 | AV45: TRUE | AW45: 1 | AX45: 44b | AY45: =IF(H27=AZ45,1,0) -> 0 | AZ45: TRUE | BA45: 2 | BB45: 72a | BC45: =IF(L31=BD45,2,0) -> 0 | BD45: TRUE | BE45: 2 | BF45: 74a | BG45: =IF(L33=BH45,2,0) -> 0 | BH45: TRUE | BI45: 2 | BJ45: 42a | BK45: =IF(G25=BL45,2,0) -> 0 | BL45: TRUE
A46: 2 | B46: 51c | C46: =IF(N6=D46,2,0) -> 0 | D46: TRUE | E46: 1 | F46: 30b | G46: =IF(H10=H46,1,0) -> 0 | H46: TRUE | I46: 2 | J46: 82c | K46: =IF(S13=L46,2,0) -> 0 | L46: TRUE | M46: 2 | N46: 60C | O46: =IF(N16=P46,2,0) -> 0 | P46: TRUE | Q46: 2 | R46: 64c | S46: =IF(N21=T46,2,0) -> 0 | T46: TRUE | U46: 1 | V46: 46b | W46: =IF(H30=X46,1,0) -> 0 | X46: TRUE | Y46: 1 | Z46: 73b | AA46: =IF(M32=AB46,1,0) -> 0 | AB46: TRUE | AC46: 1 | AD46: 127c | AE46: =IF(AC7=AF46,1,0) -> 0 | AF46: TRUE | AG46: 2 | AH46: 32c | AI46: =IF(I13=AJ46,2,0) -> 0 | AJ46: TRUE | AK46: 2 | AL46: 84c | AM46: =IF(S15=AN46,2,0) -> 0 | AN46: TRUE | AO46: 2 | AP46: 62c | AQ46: =IF(N19=AR46,2,0) -> 0 | AR46: TRUE | AS46: 1 | AT46: 40b | AU46: =IF(H22=AV46,1,0) -> 0 | AV46: TRUE | AW46: 2 | AX46: 44c | AY46: =IF(I27=AZ46,2,0) -> 0 | AZ46: TRUE | BA46: 1 | BB46: 72b | BC46: =IF(M31=BD46,1,0) -> 0 | BD46: TRUE | BE46: 1 | BF46: 74b | BG46: =IF(M33=BH46,1,0) -> 0 | BH46: TRUE | BI46: 1 | BJ46: 42b | BK46: =IF(H25=BL46,1,0) -> 0 | BL46: TRUE
A47: 2 | B47: 52a | C47: =IF(L7=D47,2,0) -> 0 | D47: TRUE | E47: 2 | F47: 55A | G47: =IF(L10=H47,2,0) -> 0 | H47: TRUE | I47: 2 | J47: 83a | K47: =IF(Q14=L47,2,0) -> 0 | L47: TRUE | M47: 1 | N47: 61b | O47: =IF(M18=P47,1,0) -> 0 | P47: TRUE | Q47: 2 | R47: 88a | S47: =IF(Q20=T47,2,0) -> 0 | T47: TRUE | U47: 2 | V47: 70a | W47: =IF(L28=X47,2,0) -> 0 | X47: TRUE | Y47: 2 | Z47: 98a | AA47: =IF(Q32=AB47,2,0) -> 0 | AB47: TRUE | AC47: 1 | AD47: 128b | AE47: =IF(AB8=AF47,1,0) -> 0 | AF47: TRUE | AG47: 2 | AH47: 56a | AI47: =IF(L12=AJ47,2,0) -> 0 | AJ47: TRUE | AK47: 2 | AL47: 109a | AM47: =IF(V15=AN47,2,0) -> 0 | AN47: TRUE | AO47: 1 | AP47: 87b | AQ47: =IF(R19=AR47,1,0) -> 0 | AR47: TRUE | AS47: 1 | AT47: 65a | AU47: =IF(L22=AV47,1,0) -> 0 | AV47: TRUE | AW47: 1 | AX47: 68b | AY47: =IF(M26=AZ47,1,0) -> 0 | AZ47: TRUE | BA47: 1 | BB47: 96b | BC47: =IF(R30=BD47,1,0) -> 0 | BD47: TRUE | BE47: 1 | BF47: 75b | BG47: =IF(M34=BH47,1,0) -> 0 | BH47: TRUE | BI47: 1 | BJ47: 66b | BK47: =IF(M24=BL47,1,0) -> 0 | BL47: TRUE
A48: 1 | B48: 52b | C48: =IF(M7=D48,1,0) -> 0 | D48: TRUE | E48: 1 | F48: 55B | G48: =IF(M10=H48,1,0) -> 0 | H48: TRUE | I48: 1 | J48: 83b | K48: =IF(R14=L48,1,0) -> 0 | L48: TRUE | M48: 2 | N48: 61c | O48: =IF(N18=P48,2,0) -> 0 | P48: TRUE | Q48: 1 | R48: 88b | S48: =IF(R20=T48,1,0) -> 0 | T48: TRUE | U48: 1 | V48: 70b | W48: =IF(M27=X48,1,0) -> 0 | X48: TRUE | Y48: 1 | Z48: 98b | AA48: =IF(R32=AB48,1,0) -> 0 | AB48: TRUE | AC48: 1 | AD48: 152a | AE48: =IF(AF7=AF48,1,0) -> 0 | AF48: TRUE | AG48: 1 | AH48: 56b | AI48: =IF(H18=AJ48,1,0) -> 0 | AJ48: TRUE | AK48: 1 | AL48: 109b | AM48: =IF(W15=AN48,1,0) -> 0 | AN48: TRUE | AO48: 2 | AP48: 87c | AQ48: =IF(S19=AR48,2,0) -> 0 | AR48: TRUE | AS48: 2 | AT48: 65b | AU48: =IF(M22=AV48,2,0) -> 0 | AV48: TRUE | AW48: 2 | AX48: 68c | AY48: =IF(N26=AZ48,2,0) -> 0 | AZ48: TRUE | BA48: 2 | BB48: 96c | BC48: =IF(S30=BD48,2,0) -> 0 | BD48: TRUE | BE48: 2 | BF48: 75c | BG48: =IF(N34=BH48,2,0) -> 0 | BH48: TRUE | BI48: 2 | BJ48: 66c | BK48: =IF(N24=BL48,2,0) -> 0 | BL48: TRUE
A49: 1 | B49: 76b | C49: =IF(R6=D49,1,0) -> 0 | D49: TRUE | E49: 1 | F49: 79b | G49: =IF(R9=H49,1,0) -> 0 | H49: TRUE | I49: 1 | J49: 107b | K49: =IF(W13=L49,1,0) -> 0 | L49: TRUE | M49: 1 | N49: 85b | O49: =IF(G24=P49,1,0) -> 0 | P49: TRUE | Q49: 1 | R49: 89b | S49: =IF(R21=T49,1,0) -> 0 | T49: TRUE | U49: 1 | V49: 95b | W49: =IF(R28=X49,1,0) -> 0 | X49: TRUE | Y49: 1 | Z49: 123B | AA49: =IF(W32=AB49,1,0) -> 0 | AB49: TRUE | AC49: 1 | AD49: 153c | AE49: =IF(AH8=AF49,1,0) -> 0 | AF49: TRUE | AG49: 1 | AH49: 57b | AI49: =IF(M13=AJ49,1,0) -> 0 | AJ49: TRUE | AK49: 2 | AL49: 134A | AM49: =IF(AA15=AN49,2,0) -> 0 | AN49: TRUE | AO49: 2 | AP49: 112a | AQ49: =IF(V19=AR49,2,0) -> 0 | AR49: TRUE | AS49: 1 | AT49: 90b | AU49: =IF(R22=AV49,1,0) -> 0 | AV49: TRUE | AW49: 2 | AX49: 69a | AY49: =IF(L27=AZ49,2,0) -> 0 | AZ49: TRUE | BA49: 1 | BB49: 97b | BC49: =IF(R31=BD49,1,0) -> 0 | BD49: TRUE | BE49: 2 | BF49: 99a | BG49: =IF(Q33=BH49,2,0) -> 0 | BH49: TRUE | BI49: 1 | BJ49: 67b | BK49: =IF(M25=BL49,1,0) -> 0 | BL49: TRUE
A50: 2 | B50: 76c | C50: =IF(S6=D50,2,0) -> 0 | D50: TRUE | E50: 2 | F50: 79c | G50: =IF(S9=H50,2,0) -> 0 | H50: TRUE | I50: 2 | J50: 107c | K50: =IF(X13=L50,2,0) -> 0 | L50: TRUE | M50: 2 | N50: 85c | O50: =IF(G25=P50,2,0) -> 0 | P50: TRUE | Q50: 2 | R50: 89c | S50: =IF(S21=T50,2,0) -> 0 | T50: TRUE | U50: 2 | V50: 95c | W50: =IF(S28=X50,2,0) -> 0 | X50: TRUE | Y50: 2 | Z50: 123C | AA50: =IF(X32=AB50,2,0) -> 0 | AB50: TRUE | AC50: 1 | AD50: 177a | AE50: =IF(AK7=AF50,1,0) -> 0 | AF50: TRUE | AG50: 2 | AH50: 57c | AI50: =IF(N13=AJ50,2,0) -> 0 | AJ50: TRUE | AK50: 1 | AL50: 134B | AM50: =IF(AB15=AN50,1,0) -> 0 | AN50: TRUE | AO50: 1 | AP50: 112b | AQ50: =IF(W19=AR50,1,0) -> 0 | AR50: TRUE | AS50: 2 | AT50: 90c | AU50: =IF(S22=AV50,2,0) -> 0 | AV50: TRUE | AW50: 1 | AX50: 69b | AY50: =IF(M27=AZ50,1,0) -> 0 | AZ50: TRUE | BA50: 2 | BB50: 97c | BC50: =IF(S31=BD50,2,0) -> 0 | BD50: TRUE | BE50: 1 | BF50: 99b | BG50: =IF(R33=BH50,1,0) -> 0 | BH50: TRUE | BI50: 2 | BJ50: 67c | BK50: =IF(N25=BL50,2,0) -> 0 | BL50: TRUE
A51: 2 | B51: 101a | C51: =IF(V6=D51,2,0) -> 0 | D51: TRUE | E51: 1 | F51: 80b | G51: =IF(R10=H51,1,0) -> 0 | H51: TRUE | I51: 1 | J51: 108b | K51: =IF(W14=L51,1,0) -> 0 | L51: TRUE | M51: 1 | N51: 86b | O51: =IF(G26=P51,1,0) -> 0 | P51: TRUE | Q51: 2 | R51: 113a | S51: =IF(V20=T51,2,0) -> 0 | T51: TRUE | U51: 1 | V51: 120B | W51: =IF(W28=X51,1,0) -> 0 | X51: TRUE | Y51: 1 | Z51: 147b | AA51: =IF(AB31=AB51,1,0) -> 0 | AB51: TRUE | AC51: 1 | AD51: 178a | AE51: =IF(AK8=AF51,1,0) -> 0 | AF51: TRUE | AG51: 1 | AH51: 81b | AI51: =IF(R12=AJ51,1,0) -> 0 | AJ51: TRUE | AK51: 1 | AL51: 159b | AM51: =IF(AG15=AN51,1,0) -> 0 | AN51: TRUE | AO51: 1 | AP51: 137b | AQ51: =IF(AB19=AR51,1,0) -> 0 | AR51: TRUE | AS51: 2 | AT51: 91a | AU51: =IF(Q24=AV51,2,0) -> 0 | AV51: TRUE | AW51: 1 | AX51: 93b | AY51: =IF(R26=AZ51,1,0) -> 0 | AZ51: TRUE | BA51: 1 | BB51: 121b | BC51: =IF(W30=BD51,1,0) -> 0 | BD51: TRUE | BE51: 1 | BF51: 100a | BG51: =IF(Q34=BH51,1,0) -> 0 | BH51: TRUE | BI51: 1 | BJ51: 92b | BK51: =IF(R25=BL51,1,0) -> 0 | BL51: TRUE
A52: 1 | B52: 101b | C52: =IF(W6=D52,1,0) -> 0 | D52: TRUE | E52: 2 | F52: 80c | G52: =IF(S10=H52,2,0) -> 0 | H52: TRUE | I52: 2 | J52: 108c | K52: =IF(X14=L52,2,0) -> 0 | L52: TRUE | M52: 2 | N52: 86c | O52: =IF(G27=P52,2,0) -> 0 | P52: TRUE | Q52: 1 | R52: 113b | S52: =IF(W20=T52,1,0) -> 0 | T52: TRUE | U52: 2 | V52: 120C | W52: =IF(X28=X52,2,0) -> 0 | X52: TRUE | Y52: 2 | Z52: 147c | AA52: =IF(AC31=AB52,2,0) -> 0 | AB52: TRUE | AD52: =AC37 -> Factor B | AE52: =SUM(AE39:AE51) -> 0 | AG52: 2 | AH52: 81c | AI52: =IF(S12=AJ52,2,0) -> 0 | AJ52: TRUE | AK52: 2 | AL52: 159c | AM52: =IF(AH15=AN52,2,0) -> 0 | AN52: TRUE | AO52: 2 | AP52: 137c | AQ52: =IF(AC19=AR52,2,0) -> 0 | AR52: TRUE | AS52: 1 | AT52: 91b | AU52: =IF(R24=AV52,1,0) -> 0 | AV52: TRUE | AW52: 2 | AX52: 93c | AY52: =IF(S26=AZ52,2,0) -> 0 | AZ52: TRUE | BA52: 2 | BB52: 121c | BC52: =IF(X30=BD52,2,0) -> 0 | BD52: TRUE | BE52: 2 | BF52: 100b | BG52: =IF(R34=BH52,2,0) -> 0 | BH52: TRUE | BI52: 2 | BJ52: 92c | BK52: =IF(S25=BL52,2,0) -> 0 | BL52: TRUE
A53: 2 | B53: 126a | C53: =IF(AA6=D53,2,0) -> 0 | D53: TRUE | E53: 2 | F53: 104a | G53: =IF(V9=H53,2,0) -> 0 | H53: TRUE | I53: 2 | J53: 132a | K53: =IF(AA13=L53,2,0) -> 0 | L53: TRUE | M53: 2 | N53: 110a | O53: =IF(G28=P53,2,0) -> 0 | P53: TRUE | Q53: 2 | R53: 114a | S53: =IF(V21=T53,2,0) -> 0 | T53: TRUE | U53: 2 | V53: 145a | W53: =IF(AA28=X53,2,0) -> 0 | X53: TRUE | Y53: 2 | Z53: 148a | AA53: =IF(AA32=AB53,2,0) -> 0 | AB53: TRUE | AG53: 1 | AH53: 106b | AI53: =IF(W12=AJ53,1,0) -> 0 | AJ53: TRUE | AK53: 2 | AL53: 160a | AM53: =IF(AF16=AN53,2,0) -> 0 | AN53: TRUE | AO53: 2 | AP53: 138a | AQ53: =IF(AA20=AR53,2,0) -> 0 | AR53: TRUE | AS53: 2 | AT53: 115a | AU53: =IF(V22=AV53,2,0) -> 0 | AV53: TRUE | AW53: 2 | AX53: 94a | AY53: =IF(Q27=AZ53,2,0) -> 0 | AZ53: TRUE | BA53: 1 | BB53: 122b | BC53: =IF(W31=BD53,1,0) -> 0 | BD53: TRUE | BE53: 2 | BF53: 124a | BG53: =IF(V33=BH53,2,0) -> 0 | BH53: TRUE | BI53: 2 | BJ53: 117a | BK53: =IF(V25=BL53,2,0) -> 0 | BL53: TRUE
A54: 1 | B54: 126b | C54: =IF(AB6=D54,1,0) -> 0 | D54: TRUE | E54: 1 | F54: 104b | G54: =IF(W9=H54,1,0) -> 0 | H54: TRUE | I54: 1 | J54: 132b | K54: =IF(AB13=L54,1,0) -> 0 | L54: TRUE | M54: 1 | N54: 110b | O54: =IF(G29=P54,1,0) -> 0 | P54: TRUE | Q54: 1 | R54: 114b | S54: =IF(W21=T54,1,0) -> 0 | T54: TRUE | U54: 1 | V54: 145b | W54: =IF(AB28=X54,1,0) -> 0 | X54: TRUE | Y54: 1 | Z54: 148b | AA54: =IF(AB32=AB54,1,0) -> 0 | AB54: TRUE | AG54: 2 | AH54: 106c | AI54: =IF(X12=AJ54,2,0) -> 0 | AJ54: TRUE | AK54: 1 | AL54: 160b | AM54: =IF(AG16=AN54,1,0) -> 0 | AN54: TRUE | AO54: 1 | AP54: 138b | AQ54: =IF(AB20=AR54,1,0) -> 0 | AR54: TRUE | AS54: 1 | AT54: 115b | AU54: =IF(W22=AV54,1,0) -> 0 | AV54: TRUE | AW54: 1 | AX54: 94b | AY54: =IF(R27=AZ54,1,0) -> 0 | AZ54: TRUE | BA54: 2 | BB54: 122c | BC54: =IF(X31=BD54,2,0) -> 0 | BD54: TRUE | BE54: 1 | BF54: 124b | BG54: =IF(W33=BH54,1,0) -> 0 | BH54: TRUE | BI54: 1 | BJ54: 117b | BK54: =IF(W25=BL54,1,0) -> 0 | BL54: TRUE
A55: 1 | B55: 151b | C55: =IF(AG6=D55,1,0) -> 0 | D55: TRUE | E55: 2 | F55: 105a | G55: =IF(V10=H55,2,0) -> 0 | H55: TRUE | I55: 2 | J55: 133a | K55: =IF(AA14=L55,2,0) -> 0 | L55: TRUE | M55: 2 | N55: 111a | O55: =IF(V18=P55,2,0) -> 0 | P55: TRUE | Q55: 1 | R55: 139b | S55: =IF(AB21=T55,1,0) -> 0 | T55: TRUE | U55: 2 | V55: 169a | W55: =IF(AF27=X55,2,0) -> 0 | X55: TRUE | Y55: 1 | Z55: 172b | AA55: =IF(AG31=AB55,1,0) -> 0 | AB55: TRUE | AG55: 2 | AH55: 131a | AI55: =IF(AA12=AJ55,2,0) -> 0 | AJ55: TRUE | AK55: 2 | AL55: 184a | AM55: =IF(AK15=AN55,2,0) -> 0 | AN55: TRUE | AO55: 1 | AP55: 162b | AQ55: =IF(AG19=AR55,1,0) -> 0 | AR55: TRUE | AS55: 2 | AT55: 116a | AU55: =IF(V24=AV55,2,0) -> 0 | AV55: TRUE | AW55: 2 | AX55: 118a | AY55: =IF(V26=AZ55,2,0) -> 0 | AZ55: TRUE | BA55: 2 | BB55: 146a | BC55: =IF(AA30=BD55,2,0) -> 0 | BD55: TRUE | BE55: 1 | BF55: 125b | BG55: =IF(W34=BH55,1,0) -> 0 | BH55: TRUE | BI55: 2 | BJ55: 142a | BK55: =IF(AA25=BL55,2,0) -> 0 | BL55: TRUE
A56: 2 | B56: 151c | C56: =IF(AH6=D56,2,0) -> 0 | D56: TRUE | E56: 1 | F56: 105b | G56: =IF(W10=H56,1,0) -> 0 | H56: TRUE | I56: 1 | J56: 133b | K56: =IF(AB14=L56,1,0) -> 0 | L56: TRUE | M56: 1 | N56: 111b | O56: =IF(W18=P56,1,0) -> 0 | P56: TRUE | Q56: 2 | R56: 139c | S56: =IF(AC21=T56,2,0) -> 0 | T56: TRUE | U56: 1 | V56: 169b | W56: =IF(AG27=X56,1,0) -> 0 | X56: TRUE | Y56: 2 | Z56: 172c | AA56: =IF(AH31=AB56,2,0) -> 0 | AB56: TRUE | AG56: 1 | AH56: 131b | AI56: =IF(AB12=AJ56,1,0) -> 0 | AJ56: TRUE | AK56: 1 | AL56: 184b | AM56: =IF(AL15=AN56,1,0) -> 0 | AN56: TRUE | AO56: 2 | AP56: 162c | AQ56: =IF(AH19=AR56,2,0) -> 0 | AR56: TRUE | AS56: 1 | AT56: 116b | AU56: =IF(W24=AV56,1,0) -> 0 | AV56: TRUE | AW56: 1 | AX56: 118b | AY56: =IF(W26=AZ56,1,0) -> 0 | AZ56: TRUE | BA56: 1 | BB56: 146b | BC56: =IF(AB30=BD56,1,0) -> 0 | BD56: TRUE | BE56: 2 | BF56: 125c | BG56: =IF(X34=BH56,2,0) -> 0 | BH56: TRUE | BI56: 1 | BJ56: 142b | BK56: =IF(AB25=BL56,1,0) -> 0 | BL56: TRUE
A57: 2 | B57: 176a | C57: =IF(AK6=D57,2,0) -> 0 | D57: TRUE | E57: 1 | F57: 129b | G57: =IF(AB9=H57,1,0) -> 0 | H57: TRUE | I57: 1 | J57: 157b | K57: =IF(AG13=L57,1,0) -> 0 | L57: TRUE | M57: 2 | N57: 135a | O57: =IF(AA16:AA16=P57,2,0) -> 0 | P57: TRUE | Q57: 2 | R57: 164a | S57: =IF(AF20=T57,2,0) -> 0 | T57: TRUE | U57: 1 | V57: 170b | W57: =IF(AG28=X57,1,0) -> 0 | X57: TRUE | Y57: 2 | Z57: 173a | AA57: =IF(AF32=AB57,2,0) -> 0 | AB57: TRUE | AG57: 2 | AH57: 155a | AI57: =IF(AF10=AJ57,2,0) -> 0 | AJ57: TRUE | AK57: 2 | AL57: 185a | AM57: =IF(AK16=AN57,2,0) -> 0 | AN57: TRUE | AO57: 2 | AP57: 163a | AQ57: =IF(AF20=AR57,2,0) -> 0 | AR57: TRUE | AS57: 2 | AT57: 140a | AU57: =IF(AA22=AV57,2,0) -> 0 | AV57: TRUE | AW57: 2 | AX57: 119a | AY57: =IF(V27=AZ57,2,0) -> 0 | AZ57: TRUE | BA57: 2 | BB57: 171a | BC57: =IF(AF30=BD57,2,0) -> 0 | BD57: TRUE | BE57: 2 | BF57: 149a | BG57: =IF(AA33=BH57,2,0) -> 0 | BH57: TRUE | BI57: 2 | BJ57: 167A | BK57: =IF(AF13=BL57,2,0) -> 0 | BL57: TRUE
A58: 1 | B58: 176b | C58: =IF(AL6=D58,1,0) -> 0 | D58: TRUE | E58: 2 | F58: 129c | G58: =IF(AC9=H58,2,0) -> 0 | H58: TRUE | I58: 2 | J58: 157c | K58: =IF(AH13=L58,2,0) -> 0 | L58: TRUE | M58: 1 | N58: 135b | O58: =IF(AB16=P58,1,0) -> 0 | P58: TRUE | Q58: 1 | R58: 164b | S58: =IF(AG21=T58,1,0) -> 0 | T58: TRUE | U58: 2 | V58: 170c | W58: =IF(AH28=X58,2,0) -> 0 | X58: TRUE | Y58: 1 | Z58: 173b | AA58: =IF(AG32=AB58,1,0) -> 0 | AB58: TRUE | AG58: 1 | AH58: 155b | AI58: =IF(AG10=AJ58,1,0) -> 0 | AJ58: TRUE | AK58: 1 | AL58: 185b | AM58: =IF(AL16=AN58,1,0) -> 0 | AN58: TRUE | AO58: 1 | AP58: 163b | AQ58: =IF(AG20=AR58,1,0) -> 0 | AR58: TRUE | AS58: 1 | AT58: 140b | AU58: =IF(AB22=AV58,1,0) -> 0 | AV58: TRUE | AW58: 1 | AX58: 119b | AY58: =IF(W27=AZ58,1,0) -> 0 | AZ58: TRUE | BA58: 1 | BB58: 171b | BC58: =IF(AG30=BD58,1,0) -> 0 | BD58: TRUE | BE58: 1 | BF58: 149b | BG58: =IF(AB33=BH58,1,0) -> 0 | BH58: TRUE | BI58: 1 | BJ58: 157B | BK58: =IF(AG13=BL58,1,0) -> 0 | BL58: TRUE
B59: Valor A | C59: =SUM(C39:C58) -> 0 | D59: =IF(B63=2,LOOKUP(C59,C67:D76,B67:B76),LOOKUP(C59,C79:D88,B79:B88)) -> 1 | E59: 2 | F59: 130a | G59: =IF(AA10=H59,2,0) -> 0 | H59: TRUE | I59: 1 | J59: 158b | K59: =IF(AG14=L59,1,0) -> 0 | L59: TRUE | M59: 2 | N59: 136a | O59: =IF(AA18=P59,2,0) -> 0 | P59: TRUE | R59: =Q37 -> Factor L | S59: =SUM(S39:S58) -> 0 | T59: =IF(B62=2,LOOKUP(S59,S67:T76,R67:R76),LOOKUP(S59,S79:T88,R79:R88)) -> 1 | V59: =U37 -> Factor Q1 | W59: =SUM(W39:W58) -> 0 | X59: =IF(B62=2,LOOKUP(W59,W67:X76,V67:V76),LOOKUP(W59,W79:X88,V79:V88)) -> 1 | Z59: =Y37 -> Factor Q3 | AA59: =SUM(AA39:AA58) -> 0 | AB59: =IF(B62=2,LOOKUP(AA59,AA67:AB76,Z67:Z76),LOOKUP(AA59,AA79:AB88,Z79:Z88)) -> 1 | AD59: Factor B | AE59: =AE52 -> 0 | AF59: =IF(B62=2,LOOKUP(AE59,AE67:AF76,AD67:AD76),LOOKUP(AE59,AE79:AF88,AD79:AD88)) -> 1 | AG59: 2 | AH59: 156a | AI59: =IF(AF12=AJ59,2,0) -> 0 | AJ59: TRUE | AL59: =AK37 -> Factor G | AM59: =SUM(AM39:AM58) -> 0 | AN59: =IF(B62=2,LOOKUP(AM59,AM67:AN76,AL67:AL76),LOOKUP(AM59,AM79:AN88,AL79:AL88)) -> 1 | AP59: =AO37 -> Factor I | AQ59: =SUM(AQ39:AQ58) -> 0 | AR59: =IF(B62=2,LOOKUP(AQ59,AQ67:AR76,AP67:AP76),LOOKUP(AQ59,AQ79:AR88,AP79:AP88)) -> 1 | AS59: 1 | AT59: 141b | AU59: =IF(AB24=AV59,1,0) -> 0 | AV59: TRUE | AW59: 2 | AX59: 143a | AY59: =IF(AA26=AZ59,2,0) -> 0 | AZ59: TRUE | BB59: =BA37 -> Factor Q2 | BC59: =SUM(BC39:BC58) -> 0 | BD59: =IF(B6=2,LOOKUP(BC59,BC67:BD76,BB67:BB76),LOOKUP(BC59,BC79:BD88,BB79:BB88)) -> 1 | BE59: 1 | BF59: 150b | BG59: =IF(AB34=BH59,1,0) -> 0 | BH59: TRUE | BJ59: =BI37 -> Factor N | BK59: =SUM(BK39:BK58) -> 0 | BL59: =IF(B62=2,LOOKUP(BK59,BK67:BL76,BJ67:BJ76),LOOKUP(BK59,BK79:BL88,BJ79:BJ88)) -> 1
E60: 1 | F60: 130b | G60: =IF(AB10=H60,1,0) -> 0 | H60: TRUE | I60: 2 | J60: 158c | K60: =IF(AH14=L60,2,0) -> 0 | L60: TRUE | M60: 1 | N60: 136b | O60: =IF(AB18=P60,1,0) -> 0 | P60: TRUE | AG60: 1 | AH60: 156b | AI60: =IF(AG12=AJ60,1,0) -> 0 | AJ60: TRUE | AS60: 2 | AT60: 141c | AU60: =IF(AC24=AV60,2,0) -> 0 | AV60: TRUE | AW60: 1 | AX60: 143b | AY60: =IF(AB26=AZ60,1,0) -> 0 | AZ60: TRUE | BE60: 2 | BF60: 150c | BG60: =IF(AC34=BH60,2,0) -> 0 | BH60: TRUE
E61: 1 | F61: 154B | G61: =IF(AG9=H61,1,0) -> 0 | H61: TRUE | I61: 2 | J61: 182a | K61: =IF(AK13=L61,2,0) -> 0 | L61: TRUE | M61: 1 | N61: 161b | O61: =IF(AG18=P61,1,0) -> 0 | P61: TRUE | AG61: 2 | AH61: 180a | AI61: =IF(AK10=AJ61,2,0) -> 0 | AJ61: TRUE | AS61: 1 | AT61: 165b | AU61: =IF(AG12=AV61,1,0) -> 0 | AV61: TRUE | AW61: 1 | AX61: 144b | AY61: =IF(AB27=AZ61,1,0) -> 0 | AZ61: TRUE | BE61: 2 | BF61: 174a | BG61: =IF(AF33=BH61,2,0) -> 0 | BH61: TRUE
B62: 2 | C62: H1 | E62: 2 | F62: 154C | G62: =IF(AH9=H62,2,0) -> 0 | H62: TRUE | I62: 1 | J62: 182b | K62: =IF(AL13=L62,1,0) -> 0 | L62: TRUE | M62: 2 | N62: 161c | O62: =IF(AH18=P62,2,0) -> 0 | P62: TRUE | AG62: 1 | AH62: 180b | AI62: =IF(AL10=AJ62,1,0) -> 0 | AJ62: TRUE | AS62: 2 | AT62: 165c | AU62: =IF(AH12=AV62,2,0) -> 0 | AV62: TRUE | AW62: 2 | AX62: 144c | AY62: =IF(AC27=AZ62,2,0) -> 0 | AZ62: TRUE | BE62: 1 | BF62: 174b | BG62: =IF(AG33=BH62,1,0) -> 0 | BH62: TRUE
C63: M2 | E63: 2 | F63: 179a | G63: =IF(AK9=H63,2,0) -> 0 | H63: TRUE | I63: 2 | J63: 183a | K63: =IF(AK14=L63,2,0) -> 0 | L63: TRUE | M63: 2 | N63: 186a | O63: =IF(AK18=P63,2,0) -> 0 | P63: TRUE | AG63: 2 | AH63: 181a | AI63: =IF(AK12=AJ63,2,0) -> 0 | AJ63: TRUE | AS63: 1 | AT63: 166b | AU63: =IF(AG24=AV63,1,0) -> 0 | AV63: TRUE | AW63: 1 | AX63: 168B | AY63: =IF(AG26=AZ63,1,0) -> 0 | AZ63: TRUE | BE63: 1 | BF63: 175b | BG63: =IF(AG34=BH63,1,0) -> 0 | BH63: TRUE
E64: 1 | F64: 179b | G64: =IF(AL9=H64,1,0) -> 0 | H64: TRUE | I64: 1 | J64: 183b | K64: =IF(AL14:AL14=L64,1,0) -> 0 | L64: TRUE | M64: 1 | N64: 186b | O64: =IF(AL18=P64,1,0) -> 0 | P64: TRUE | AG64: 1 | AH64: 181b | AI64: =IF(AL12=AJ64,1,0) -> 0 | AJ64: TRUE | AS64: 2 | AT64: 166c | AU64: =IF(AH24=AV64,2,0) -> 0 | AV64: TRUE | AW64: 2 | AX64: 168C | AY64: =IF(AH26=AZ64,2,0) -> 0 | AZ64: TRUE | BE64: 2 | BF64: 175c | BG64: =IF(AH34=BH64,2,0) -> 0 | BH64: TRUE
B65: factor a | F65: VALOR C | G65: =SUM(G39:G64) -> 0 | H65: =IF(B62=2,LOOKUP(G65,F67:G76,E67:E76),LOOKUP(G65,F79:G88,E79:E88)) -> 1 | J65: VALOR F | K65: =SUM(K39:K64) -> 0 | L65: =IF(B62=2,LOOKUP(K65,J67:K76,I67:I76),LOOKUP(K65,J79:K88,I79:I88)) -> 1 | N65: =M37 -> Factor H | O65: =SUM(O39:O64) -> 0 | P65: =IF(B62=2,LOOKUP(O65,N67:O76,M67:M76),LOOKUP(O65,N79:O88,M79:M88)) -> 1 | AH65: =AG37 -> Factor E | AI65: =SUM(AI39:AI64) -> 0 | AJ65: =IF(B62=2,LOOKUP(AI65,AH67:AI76,AG67:AG76),LOOKUP(AI65,AH79:AI88,AG79:AG88)) -> 1 | AT65: =AS37 -> Factor M | AU65: =SUM(AU39:AU64) -> 0 | AV65: =IF(B62=2,LOOKUP(AU65,AT67:AU76,AS67:AS76),LOOKUP(AU65,AT79:AU88,AS79:AS88)) -> 1 | AX65: =AW37 -> Factor O | AY65: =SUM(AY39:AY64) -> 0 | AZ65: =IF(B62=2,LOOKUP(AY65,AX67:AY76,AW67:AW76),LOOKUP(AY65,AX79:AY88,AW79:AW88)) -> 1 | BF65: =BE37 -> Factor Q4 | BG65: =SUM(BG39:BG64) -> 0 | BH65: =IF(B62=2,LOOKUP(BG65,BF67:BG76,BE67:BE76),LOOKUP(BG65,BF79:BG88,BE79:BE88)) -> 1
B66: MUJER | E66: MUJER | I66: MUJER | M66: MUJER | R66: MUJER | V66: MUJER | Z66: MUJER | AD66: MUJER | AG66: MUJER | AL66: MUJER | AP66: MUJER | AS66: MUJER | AW66: MUJER | BB66: MUJER | BE66: MUJER | BJ66: MUJER
B67: 1 | C67: 0 | D67: 5 | E67: 1 | F67: 0 | G67: 12 | I67: 1 | J67: 0 | K67: 3 | M67: 1 | N67: 0 | O67: 5 | R67: 1 | S67: 0 | T67: 4 | V67: 1 | W67: 0 | X67: 3 | Z67: 1 | AA67: 0 | AB67: 4 | AD67: 1 | AE67: 0 | AF67: 2 | AG67: 1 | AH67: 0 | AI67: 4 | AL67: 1 | AM67: 0 | AN67: 7 | AP67: 1 | AQ67: 0 | AR67: 3 | AS67: 1 | AT67: 0 | AU67: 6 | AW67: 1 | AX67: 0 | AY67: 2 | BB67: 1 | BC67: 0 | BD67: 5 | BE67: 1 | BF67: 0 | BG67: 2 | BJ67: 1 | BK67: 0 | BL67: 5
B68: =B67+1 -> 2 | C68: 6 | D68: 6 | E68: =E67+1 -> 2 | F68: 13 | G68: 13 | I68: =I67+1 -> 2 | J68: 4 | K68: 6 | M68: =M67+1 -> 2 | N68: 6 | O68: 7 | R68: =R67+1 -> 2 | S68: 5 | T68: 5 | V68: =V67+1 -> 2 | W68: 4 | X68: 5 | Z68: =Z67+1 -> 2 | AA68: 5 | AB68: 6 | AD68: =AD67+1 -> 2 | AE68: 3 | AF68: 3 | AG68: =AG67+1 -> 2 | AH68: 5 | AI68: 5 | AL68: =AL67+1 -> 2 | AM68: 8 | AN68: 8 | AP68: =AP67+1 -> 2 | AQ68: 4 | AR68: 5 | AS68: =AS67+1 -> 2 | AT68: 7 | AU68: 8 | AW68: =AW67+1 -> 2 | AX68: 3 | AY68: 3 | BB68: =BB67+1 -> 2 | BC68: 6 | BD68: 6 | BE68: =BE67+1 -> 2 | BF68: 3 | BG68: 3 | BJ68: =BJ67+1 -> 2 | BK68: 6 | BL68: 7
B69: =B68+1 -> 3 | C69: 7 | D69: 8 | E69: =E68+1 -> 3 | F69: 14 | G69: 14 | I69: =I68+1 -> 3 | J69: 7 | K69: 8 | M69: =M68+1 -> 3 | N69: 8 | O69: 9 | R69: =R68+1 -> 3 | S69: 6 | T69: 6 | V69: =V68+1 -> 3 | W69: 6 | X69: 7 | Z69: =Z68+1 -> 3 | AA69: 7 | AB69: 9 | AD69: =AD68+1 -> 3 | AE69: 4 | AF69: 4 | AG69: =AG68+1 -> 3 | AH69: 6 | AI69: 6 | AL69: =AL68+1 -> 3 | AM69: 9 | AN69: 9 | AP69: =AP68+1 -> 3 | AQ69: 6 | AR69: 6 | AS69: =AS68+1 -> 3 | AT69: 9 | AU69: 9 | AW69: =AW68+1 -> 3 | AX69: 4 | AY69: 5 | BB69: =BB68+1 -> 3 | BC69: 7 | BD69: 8 | BE69: =BE68+1 -> 3 | BF69: 4 | BG69: 4 | BJ69: =BJ68+1 -> 3 | BK69: 8 | BL69: 8
B70: 4 | C70: 9 | D70: 9 | E70: 4 | F70: 15 | G70: 17 | I70: 4 | J70: 9 | K70: 10 | M70: 4 | N70: 10 | O70: 12 | R70: 4 | S70: 7 | T70: 7 | V70: 4 | W70: 8 | X70: 9 | Z70: 4 | AA70: 10 | AB70: 11 | AD70: 4 | AE70: 5 | AF70: 5 | AG70: 4 | AH70: 7 | AI70: 8 | AL70: 4 | AM70: 10 | AN70: 11 | AP70: 4 | AQ70: 7 | AR70: 7 | AS70: 4 | AT70: 10 | AU70: 10 | AW70: 4 | AX70: 6 | AY70: 8 | BB70: 4 | BC70: 9 | BD70: 9 | BE70: 4 | BF70: 5 | BG70: 6 | BJ70: 4 | BK70: 9 | BL70: 9
B71: 5 | C71: 10 | D71: 11 | E71: 5 | F71: 18 | G71: 19 | I71: 5 | J71: 11 | K71: 12 | M71: 5 | N71: 13 | O71: 14 | R71: 5 | S71: 8 | T71: 8 | V71: 5 | W71: 10 | X71: 11 | Z71: 5 | AA71: 12 | AB71: 12 | AD71: 5 | AE71: 6 | AF71: 7 | AG71: 5 | AH71: 9 | AI71: 10 | AL71: 5 | AM71: 12 | AN71: 13 | AP71: 5 | AQ71: 8 | AR71: 10 | AS71: 5 | AT71: 11 | AU71: 13 | AW71: 5 | AX71: 9 | AY71: 10 | BB71: 5 | BC71: 10 | BD71: 11 | BE71: 5 | BF71: 7 | BG71: 8 | BJ71: 5 | BK71: 10 | BL71: 10
B72: 6 | C72: 12 | D72: 12 | E72: 6 | F72: 20 | G72: 20 | I72: 6 | J72: 13 | K72: 14 | M72: 6 | N72: 15 | O72: 16 | R72: 6 | S72: 9 | T72: 10 | V72: 6 | W72: 12 | X72: 12 | Z72: 6 | AA72: 13 | AB72: 15 | AD72: 6 | AE72: 8 | AF72: 8 | AG72: 6 | AH72: 11 | AI72: 12 | AL72: 6 | AM72: 14 | AN72: 15 | AP72: 6 | AQ72: 11 | AR72: 12 | AS72: 6 | AT72: 14 | AU72: 15 | AW72: 6 | AX72: 11 | AY72: 11 | BB72: 6 | BC72: 12 | BD72: 12 | BE72: 6 | BF72: 9 | BG72: 10 | BJ72: 6 | BK72: 11 | BL72: 12
B73: 7 | C73: 13 | D73: 13 | E73: 7 | F73: 21 | G73: 22 | I73: 7 | J73: 15 | K73: 16 | M73: 7 | N73: 17 | O73: 20 | R73: 7 | S73: 11 | T73: 11 | V73: 7 | W73: 13 | X73: 14 | Z73: 7 | AA73: 16 | AB73: 16 | AD73: 7 | AE73: 9 | AF73: 9 | AG73: 7 | AH73: 13 | AI73: 14 | AL73: 7 | AM73: 16 | AN73: 16 | AP73: 7 | AQ73: 13 | AR73: 14 | AS73: 7 | AT73: 16 | AU73: 16 | AW73: 7 | AX73: 12 | AY73: 13 | BB73: 7 | BC73: 13 | BD73: 14 | BE73: 7 | BF73: 11 | BG73: 12 | BJ73: 7 | BK73: 13 | BL73: 13
B74: 8 | C74: 14 | D74: 14 | E74: 8 | F74: 23 | G74: 23 | I74: 8 | J74: 17 | K74: 17 | M74: 8 | N74: 21 | O74: 23 | R74: 8 | S74: 12 | T74: 13 | V74: 8 | W74: 15 | X74: 15 | Z74: 8 | AA74: 17 | AB74: 17 | AD74: 8 | AE74: 10 | AF74: 10 | AG74: 8 | AH74: 15 | AI74: 16 | AL74: 8 | AM74: 17 | AN74: 17 | AP74: 8 | AQ74: 15 | AR74: 15 | AS74: 8 | AT74: 17 | AU74: 18 | AW74: 8 | AX74: 14 | AY74: 14 | BB74: 8 | BC74: 15 | BD74: 16 | BE74: 8 | BF74: 13 | BG74: 15 | BJ74: 8 | BK74: 14 | BL74: 14
B75: 9 | C75: 15 | D75: 15 | E75: 9 | F75: 24 | G75: 25 | I75: 9 | J75: 18 | K75: 21 | M75: 9 | N75: 24 | O75: 24 | R75: 9 | S75: 14 | T75: 14 | V75: 9 | W75: 16 | X75: 16 | Z75: 9 | AA75: 19 | AB75: 19 | AD75: 9 | AE75: 11 | AF75: 11 | AG75: 9 | AH75: 17 | AI75: 17 | AL75: 9 | AM75: 18 | AN75: 18 | AP75: 9 | AQ75: 16 | AR75: 16 | AS75: 9 | AT75: 19 | AU75: 20 | AW75: 9 | AX75: 15 | AY75: 16 | BB75: 9 | BC75: 17 | BD75: 17 | BE75: 9 | BF75: 16 | BG75: 17 | BJ75: 9 | BK75: 15 | BL75: 15
B76: 10 | C76: 16 | D76: 20 | E76: 10 | F76: 26 | G76: 26 | I76: 10 | J76: 22 | K76: 26 | M76: 10 | N76: 25 | O76: 26 | R76: 10 | S76: 15 | T76: 20 | V76: 10 | W76: 17 | X76: 20 | Z76: 10 | AA76: 19 | AB76: 20 | AD76: 10 | AE76: 12 | AF76: 13 | AG76: 10 | AH76: 18 | AI76: 26 | AL76: 10 | AM76: 19 | AN76: 20 | AP76: 10 | AQ76: 17 | AR76: 20 | AS76: 10 | AT76: 21 | AU76: 26 | AW76: 10 | AX76: 17 | AY76: 26 | BB76: 10 | BC76: 18 | BD76: 20 | BE76: 10 | BF76: 18 | BG76: 26 | BJ76: 10 | BK76: 16 | BL76: 20
B78: HOMBRE | E78: HOMBRE | I78: HOMBRE | M78: HOMBRE | R78: HOMBRE | V78: HOMBRE | Z78: HOMBRE | AD78: HOMBRE | AG78: HOMBRE | AL78: HOMBRE | AP78: HOMBRE | AS78: HOMBRE | AW78: HOMBRE | BB78: HOMBRE | BE78: HOMBRE | BJ78: HOMBRE
B79: 1 | C79: 0 | D79: 3 | E79: 1 | F79: 0 | G79: 9 | I79: 1 | J79: 0 | K79: 4 | M79: 1 | N79: 0 | O79: 6 | R79: 1 | S79: 0 | T79: 2 | V79: 1 | W79: 0 | X79: 4 | Z79: 1 | AA79: 0 | AB79: 5 | AD79: 1 | AE79: 0 | AF79: 1 | AG79: 1 | AH79: 0 | AI79: 5 | AL79: 1 | AM79: 0 | AN79: 8 | AP79: 1 | AQ79: 0 | AR79: 1 | AS79: 1 | AT79: 0 | AU79: 6 | AW79: 1 | AX79: 0 | AY79: 3 | BB79: 1 | BC79: 0 | BD79: 3 | BE79: 1 | BF79: 0 | BG79: 1 | BJ79: 1 | BK79: 0 | BL79: 5
B80: 2 | C80: 4 | D80: 5 | E80: 2 | F80: 10 | G80: 12 | I80: 2 | J80: 5 | K80: 6 | M80: 2 | N80: 7 | O80: 7 | R80: 2 | S80: 3 | T80: 3 | V80: 2 | W80: 5 | X80: 6 | Z80: 2 | AA80: 6 | AB80: 8 | AD80: 2 | AE80: 2 | AF80: 2 | AG80: 2 | AH80: 6 | AI80: 6 | AL80: 2 | AM80: 9 | AN80: 9 | AP80: 2 | AQ80: 2 | AR80: 3 | AS80: 2 | AT80: 7 | AU80: 7 | AW80: 2 | AX80: 4 | AY80: 5 | BB80: 2 | BC80: 4 | BD80: 5 | BE80: 2 | BF80: 2 | BG80: 2 | BJ80: 2 | BK80: 6 | BL80: 6
B81: 3 | C81: 6 | D81: 7 | E81: 3 | F81: 13 | G81: 14 | I81: 3 | J81: 7 | K81: 8 | M81: 3 | N81: 8 | O81: 10 | R81: 3 | S81: 4 | T81: 5 | V81: 3 | W81: 7 | X81: 7 | Z81: 3 | AA81: 9 | AB81: 10 | AD81: 3 | AE81: 3 | AF81: 4 | AG81: 3 | AH81: 7 | AI81: 7 | AL81: 3 | AM81: 10 | AN81: 11 | AP81: 3 | AQ81: 4 | AR81: 4 | AS81: 3 | AT81: 8 | AU81: 9 | AW81: 3 | AX81: 6 | AY81: 6 | BB81: 3 | BC81: 6 | BD81: 7 | BE81: 3 | BF81: 3 | BG81: 3 | BJ81: 3 | BK81: 7 | BL81: 8
B82: 4 | C82: 8 | D82: 8 | E82: 4 | F82: 15 | G82: 17 | I82: 4 | J82: 9 | K82: 10 | M82: 4 | N82: 11 | O82: 13 | R82: 4 | S82: 6 | T82: 7 | V82: 4 | W82: 8 | X82: 9 | Z82: 4 | AA82: 11 | AB82: 12 | AD82: 4 | AE82: 5 | AF82: 5 | AG82: 4 | AH82: 8 | AI82: 9 | AL82: 4 | AM82: 12 | AN82: 12 | AP82: 4 | AQ82: 5 | AR82: 5 | AS82: 4 | AT82: 10 | AU82: 10 | AW82: 4 | AX82: 7 | AY82: 7 | BB82: 4 | BC82: 8 | BD82: 8 | BE82: 4 | BF82: 4 | BG82: 5 | BJ82: 4 | BK82: 9 | BL82: 10
B83: 5 | C83: 9 | D83: 10 | E83: 5 | F83: 18 | G83: 19 | I83: 5 | J83: 11 | K83: 13 | M83: 5 | N83: 14 | O83: 17 | R83: 5 | S83: 8 | T83: 9 | V83: 5 | W83: 10 | X83: 10 | Z83: 5 | AA83: 13 | AB83: 13 | AD83: 5 | AE83: 6 | AF83: 6 | AG83: 5 | AH83: 10 | AI83: 11 | AL83: 5 | AM83: 13 | AN83: 14 | AP83: 5 | AQ83: 6 | AR83: 7 | AS83: 5 | AT83: 11 | AU83: 12 | AW83: 5 | AX83: 8 | AY83: 10 | BB83: 5 | BC83: 9 | BD83: 10 | BE83: 5 | BF83: 6 | BG83: 7 | BJ83: 5 | BK83: 11 | BL83: 11
B84: 6 | C84: 11 | D84: 12 | E84: 6 | F84: 20 | G84: 21 | I84: 6 | J84: 14 | K84: 15 | M84: 6 | N84: 18 | O84: 19 | R84: 6 | S84: 10 | T84: 10 | V84: 6 | W84: 11 | X84: 12 | Z84: 6 | AA84: 14 | AB84: 15 | AD84: 6 | AE84: 7 | AF84: 7 | AG84: 6 | AH84: 12 | AI84: 13 | AL84: 6 | AM84: 15 | AN84: 16 | AP84: 6 | AQ84: 8 | AR84: 9 | AS84: 6 | AT84: 13 | AU84: 14 | AW84: 6 | AX84: 11 | AY84: 11 | BB84: 6 | BC84: 11 | BD84: 12 | BE84: 6 | BF84: 8 | BG84: 9 | BJ84: 6 | BK84: 12 | BL84: 12
B85: 7 | C85: 13 | D85: 13 | E85: 7 | F85: 22 | G85: 23 | I85: 7 | J85: 16 | K85: 17 | M85: 7 | N85: 20 | O85: 22 | R85: 7 | S85: 11 | T85: 12 | V85: 7 | W85: 13 | X85: 14 | Z85: 7 | AA85: 16 | AB85: 16 | AD85: 7 | AE85: 8 | AF85: 8 | AG85: 7 | AH85: 14 | AI85: 15 | AL85: 7 | AM85: 17 | AN85: 17 | AP85: 7 | AQ85: 10 | AR85: 10 | AS85: 7 | AT85: 15 | AU85: 16 | AW85: 7 | AX85: 12 | AY85: 14 | BB85: 7 | BC85: 13 | BD85: 13 | BE85: 7 | BF85: 10 | BG85: 11 | BJ85: 7 | BK85: 13 | BL85: 14
B86: 8 | C86: 14 | D86: 15 | E86: 8 | F86: 24 | G86: 24 | I86: 8 | J86: 18 | K86: 20 | M86: 8 | N86: 23 | O86: 24 | R86: 8 | S86: 13 | T86: 14 | V86: 8 | W86: 15 | X86: 15 | Z86: 8 | AA86: 17 | AB86: 17 | AD86: 8 | AE86: 8 | AF86: 8 | AG86: 8 | AH86: 16 | AI86: 18 | AL86: 8 | AM86: 18 | AN86: 18 | AP86: 8 | AQ86: 11 | AR86: 12 | AS86: 8 | AT86: 17 | AU86: 17 | AW86: 8 | AX86: 15 | AY86: 16 | BB86: 8 | BC86: 14 | BD86: 15 | BE86: 8 | BF86: 12 | BG86: 13 | BJ86: 8 | BK86: 15 | BL86: 15
B87: 9 | C87: 16 | D87: 16 | E87: 9 | F87: 25 | G87: 25 | I87: 9 | J87: 21 | K87: 22 | M87: 9 | N87: 25 | O87: 25 | R87: 9 | S87: 15 | T87: 15 | V87: 9 | W87: 16 | X87: 16 | Z87: 9 | AA87: 18 | AB87: 18 | AD87: 9 | AE87: 9 | AF87: 9 | AG87: 9 | AH87: 19 | AI87: 20 | AL87: 9 | AM87: 19 | AN87: 19 | AP87: 9 | AQ87: 13 | AR87: 13 | AS87: 9 | AT87: 18 | AU87: 18 | AW87: 9 | AX87: 17 | AY87: 19 | BB87: 9 | BC87: 16 | BD87: 17 | BE87: 9 | BF87: 14 | BG87: 16 | BJ87: 9 | BK87: 16 | BL87: 17
B88: 10 | C88: 17 | D88: 20 | E88: 10 | F88: 26 | G88: 26 | I88: 10 | J88: 23 | K88: 26 | M88: 10 | N88: 26 | O88: 26 | R88: 10 | S88: 16 | T88: 20 | V88: 10 | W88: 17 | X88: 20 | Z88: 10 | AA88: 19 | AB88: 20 | AD88: 10 | AE88: 10 | AF88: 13 | AG88: 10 | AH88: 21 | AI88: 26 | AL88: 10 | AM88: 20 | AN88: 20 | AP88: 10 | AQ88: 14 | AR88: 20 | AS88: 10 | AT88: 19 | AU88: 26 | AW88: 10 | AX88: 20 | AY88: 26 | BB88: 10 | BC88: 18 | BD88: 20 | BE88: 10 | BF88: 17 | BG88: 26 | BJ88: 10 | BK88: 18 | BL88: 20

Sheet Resultados
E3: RESULTADOS
E4: FACTOR | F4: VALOR
D5: 1 | E5: A | F5: =matriz!D59 -> 1
D6: =D5+1 -> 2 | E6: B | F6: =matriz!AF59 -> 1
D7: =D6+1 -> 3 | E7: C | F7: =matriz!H65 -> 1
D8: 4 | E8: E | F8: =matriz!AJ65 -> 1
D9: 5 | E9: F | F9: =matriz!L65 -> 1
D10: 6 | E10: G | F10: =matriz!AN59 -> 1
D11: 7 | E11: H | F11: =matriz!P65 -> 1
D12: 8 | E12: I | F12: =matriz!AR59 -> 1
D13: 9 | E13: L | F13: =matriz!T59 -> 1
D14: 10 | E14: M | F14: =matriz!AV65 -> 1
D15: 11 | E15: N | F15: =matriz!BL59 -> 1
D16: 12 | E16: O | F16: =matriz!AZ65 -> 1
D17: 13 | E17: Q1 | F17: =matriz!X59 -> 1
D18: 14 | E18: Q2 | F18: =matriz!BD59 -> 1
D19: 15 | E19: Q3 | F19: =matriz!AB59 -> 1
D20: 16 | E20: Q4 | F20: =matriz!BH65 -> 1
